bitfinex/quotes_ETHUSD_20250114
["timestamp","ask_amount","ask_price","bid_price","bid_amount"]
[1736866270260,1.0674,3214.5,3213.1,3.66225]
[1736866270485,1.0674,3214.5,3213.2,0.03111201]
[1736866270674,1.0674,3214.5,3213.1,0.55]
[1736866270858,0.258,3214.5,3213.5,3.66187]
[1736866271985,0.8094,3214.9,3213.5,3.66187]
[1736866272188,0.1659143,3215.2,3214.0,0.7615]
[1736866272364,0.1659143,3215.2,3214.1,0.55]
[1736866272702,0.04404663,3215.1,3214.2,0.03110449]
[1736866272860,0.1659143,3215.2,3214.2,0.03110449]
[1736866273196,0.1659143,3215.2,3214.0,0.7615]
[1736866273514,0.1659143,3215.2,3214.0,1.38886735]
[1736866273732,0.04460162,3215.1,3214.1,0.55]
[1736866273895,0.1659143,3215.2,3214.1,0.55]
[1736866274219,0.04453562,3215.0,3214.1,0.55]
[1736866274420,0.04460617,3215.1,3214.1,0.55]
[1736866274638,0.1659143,3215.2,3214.1,0.55]
[1736866274990,0.04462894,3215.1,3214.1,0.55]
[1736866275432,0.1659143,3215.2,3214.0,1.38886735]
[1736866275587,0.7954,3215.1,3214.0,0.7615]
[1736866275783,0.03114125,3215.0,3213.3,0.79]
[1736866276215,0.04414401,3214.9,3213.3,0.79]
[1736866276416,0.04414401,3214.9,3213.4,0.55]
[1736866277330,3.04414401,3214.9,3213.5,0.63759277]
[1736866277488,0.7954,3214.4,3212.8,0.79]
[1736866277823,3.0,3214.1,3212.7,0.6096599]
[1736866278037,0.28914125,3214.0,3212.7,0.6096599]
[1736866278215,0.33250184,3214.0,3212.7,0.6096599]
[1736866278529,0.30136059,3214.0,3212.7,0.6096599]
[1736866279200,0.30136059,3214.0,3212.8,0.55]
[1736866279626,0.04336059,3214.0,3212.8,3.6936059]
[1736866279806,0.04336059,3214.0,3213.2,0.55]
[1736866280013,0.7954,3214.4,3213.4,0.55]
[1736866280198,0.7954,3214.4,3213.4,3.66191]
[1736866280393,0.7954,3214.4,3213.3,0.79]
[1736866280729,3.0,3214.1,3212.8,0.61802322]
[1736866281218,0.7954,3213.9,3212.8,0.61802322]
[1736866281605,0.04317997,3213.8,3212.8,0.61802322]
[1736866281930,0.04317997,3213.8,3213.0,0.79]
[1736866282230,0.258,3214.5,3213.1,0.55]
[1736866282231,0.7954,3214.4,3213.1,0.55]
[1736866282608,0.04372943,3214.3,3213.0,0.79]
[1736866282807,0.82654125,3214.2,3212.8,0.61802322]
[1736866283005,0.82654125,3214.2,3212.3,0.79]
[1736866283202,3.8325,3214.0,3212.3,0.79]
[1736866283515,0.04326748,3213.9,3212.3,0.79]
[1736866283715,0.8325,3213.8,3212.5,0.62251204]
[1736866283915,0.87573008,3213.8,3212.5,0.62251204]
[1736866284929,0.03114125,3213.7,3212.5,0.62251204]
[1736866285102,0.04314826,3213.7,3212.5,0.62251204]
[1736866286421,0.04314826,3213.7,3212.6,0.03111945]
[1736866286737,0.04314826,3213.7,3212.5,0.62251204]
[1736866287033,0.8325,3213.6,3212.5,0.62251204]
[1736866287530,0.04276553,3213.5,3212.5,0.62251204]
[1736866288330,0.39064068,3213.4,3212.5,0.62251204]
[1736866288537,0.04273136,3213.4,3212.5,0.62251204]
[1736866288745,0.8325,3213.6,3212.5,0.65363684]
[1736866288905,0.04266529,3213.3,3212.5,0.62251204]
[1736866289101,0.8325,3213.6,3212.5,0.62251204]
[1736866289307,0.04248986,3213.2,3212.8,0.55]
[1736866289502,0.8325,3214.1,3212.8,0.55]
[1736866289702,0.8325,3214.1,3212.7,0.8101]
[1736866289703,0.04242378,3213.1,3212.7,0.8101]
[1736866289938,3.03114125,3214.0,3212.7,0.8101]
[1736866290140,0.0423206,3213.0,3212.2,0.8101]
[1736866290311,3.03114125,3214.0,3212.3,0.83856471]
[1736866290505,0.04234022,3212.9,3212.3,0.83856471]
[1736866290707,0.8325,3213.5,3212.3,0.83856471]
[1736866290906,0.04241082,3212.8,3212.3,0.83856471]
[1736866291118,0.8325,3213.5,3212.3,0.83856471]
[1736866291315,0.8325,3213.5,3212.7,0.63757415]
[1736866291316,1.60923777,3213.5,3212.7,0.63757415]
[1736866291548,0.8325,3213.5,3212.7,0.63757415]
[1736866292442,0.258,3214.3,3212.8,0.55]
[1736866292622,0.258,3214.3,3213.1,0.55]
[1736866292945,0.8325,3214.4,3213.1,0.55]
[1736866293111,3.8325,3214.4,3213.1,0.55]
[1736866293745,0.8325,3214.4,3213.1,0.55]
[1736866293920,0.8325,3214.4,3213.2,0.28884162]
[1736866294103,0.03114125,3214.3,3213.2,0.28884162]
[1736866294309,0.81099314,3214.3,3213.2,0.28884162]
[1736866294508,3.8325,3214.0,3213.2,0.28884162]
[1736866294810,0.8325,3213.8,3212.5,2.54740277]
[1736866295233,0.8325,3213.8,3212.3,2.54740277]
[1736866295431,0.8325,3213.8,3212.7,0.63480185]
[1736866295743,3.0,3213.6,3212.2,3.35750277]
[1736866296045,1.21886413,3213.8,3212.2,3.35750277]
[1736866296046,0.8325,3213.8,3212.6,0.61902534]
[1736866296423,0.77985189,3214.3,3212.2,3.38862457]
[1736866296424,0.8325,3213.5,3212.4,2.54740277]
[1736866296622,0.8325,3213.5,3212.5,0.60854924]
[1736866296829,0.8325,3213.5,3212.5,0.89811345]
[1736866298117,0.8325,3213.5,3212.3,2.54740277]
[1736866298118,0.8325,3212.8,3212.3,2.54740277]
[1736866298415,3.0,3212.4,3212.3,2.54740277]
[1736866298652,3.0,3212.4,3211.9,2.54740277]
[1736866299347,0.258,3212.5,3211.9,2.54740277]
[1736866299728,0.8325,3212.8,3211.8,3.18425347]
[1736866299925,0.8325,3212.8,3212.0,2.54740277]
[1736866300239,0.8325,3212.8,3212.2,3.18425347]
[1736866300440,0.8325,3212.8,3212.1,3.18425347]
[1736866300755,0.04259951,3212.7,3212.4,2.54740277]
[1736866300949,0.8325,3213.3,3212.2,3.98684853]
[1736866301151,0.258,3213.6,3212.6,2.54740277]
[1736866301359,0.04318731,3213.5,3212.6,2.578522]
[1736866301655,0.8325,3213.7,3212.9,2.54740277]
[1736866302019,0.8325,3213.7,3213.1,2.54740277]
[1736866302216,0.8325,3214.8,3213.2,0.55]
[1736866302450,0.04325336,3213.6,3213.3,0.03111338]
[1736866302656,3.8325,3214.8,3213.2,0.55]
[1736866302855,0.8325,3214.8,3213.6,2.54740277]
[1736866303019,0.07545244,3214.7,3213.6,2.54740277]
[1736866303354,0.04431119,3214.7,3213.7,2.54740277]
[1736866303916,0.04431119,3214.7,3213.8,2.54740277]
[1736866304120,0.04431119,3214.7,3213.9,0.63539477]
[1736866304858,0.04431119,3214.7,3213.9,3.18279754]
[1736866305521,0.8325,3214.8,3213.9,3.18279754]
[1736866305724,0.04416885,3214.7,3213.9,3.18279754]
[1736866305926,0.8325,3214.8,3213.9,3.18279754]
[1736866306125,0.04434424,3214.7,3213.9,3.18279754]
[1736866306321,0.9769143,3215.2,3213.9,3.96219754]
[1736866306533,0.04460826,3215.1,3214.0,0.58110756]
[1736866306735,0.1659143,3215.2,3214.3,0.7794]
[1736866307038,0.1659143,3215.2,3214.9,0.61403426]
[1736866309658,0.1659143,3215.2,3215.0,0.03109916]
[1736866309837,0.1659143,3215.2,3214.9,0.61403426]
[1736866309838,0.1659143,3215.2,3215.1,1.3294]
[1736866310954,0.1659143,3215.2,3215.1,3.87680277]
[1736866311164,0.1659143,3215.2,3215.1,0.7794]
[1736866311883,0.1659143,3215.2,3215.1,1.3294]
[1736866312179,0.1659143,3215.2,3215.1,3.91322869]
[1736866312746,0.1659143,3215.2,3215.1,6.91322869]
[1736866312944,0.06476922,3215.2,3215.1,6.91322869]
[1736866313182,0.06476922,3215.2,3215.1,7.51365347]
[1736866313529,0.06476922,3215.2,3215.1,4.3294]
[1736866313832,0.06476922,3215.2,3215.1,4.36048724]
[1736866313833,0.00886826,3215.2,3215.1,4.36048724]
[1736866314069,8.26e-06,3215.2,3215.1,4.36048724]
[1736866315634,8.26e-06,3215.2,3215.1,4.3294]
[1736866315944,8.26e-06,3215.2,3215.1,7.58183456]
[1736866316153,8.26e-06,3215.2,3215.1,7.55074687]
[1736866316345,8.26e-06,3215.2,3215.1,4.3294]
[1736866316539,8.26e-06,3215.2,3215.1,6.90770185]
[1736866316954,8.26e-06,3215.2,3215.1,4.3294]
[1736866317130,8.26e-06,3215.2,3215.1,1.3294]
[1736866317334,8.26e-06,3215.2,3214.9,3.19233611]
[1736866317545,8.26e-06,3215.2,3214.9,0.61403426]
[1736866318742,0.04560194,3215.1,3214.9,0.61403426]
[1736866319562,0.04560194,3215.1,3214.3,0.7794]
[1736866319778,8.26e-06,3215.2,3214.4,3.661]
[1736866320284,8.26e-06,3215.2,3214.0,2.57830185]
[1736866320443,0.7922,3215.1,3213.9,0.8117]
[1736866320775,0.8380202,3215.1,3214.0,0.58110705]
[1736866320942,0.7922,3215.1,3214.1,0.03110461]
[1736866321274,0.7922,3215.1,3214.6,0.61305498]
[1736866321486,0.7922,3215.1,3213.5,3.39000185]
[1736866321647,0.04563438,3215.0,3214.2,0.63623617]
[1736866322974,0.04563438,3215.0,3214.3,0.03110517]
[1736866323188,0.7922,3215.1,3214.3,0.03110517]
[1736866323340,0.04547512,3215.0,3214.3,0.55]
[1736866323750,0.7922,3215.1,3214.3,1.3617]
[1736866324365,0.7922,3215.1,3214.7,0.61000155]
[1736866324567,0.04546602,3215.0,3213.7,0.8117]
[1736866324752,0.04546602,3215.0,3213.4,3.22134687]
[1736866324753,0.7922,3214.9,3213.4,3.11196]
[1736866325082,0.04520872,3214.8,3214.1,0.63193643]
[1736866325641,0.7922,3214.9,3213.3,2.57830185]
[1736866325855,0.04469677,3214.7,3213.2,0.8117]
[1736866326076,0.04507002,3214.8,3213.3,0.55]
[1736866326279,0.7922,3214.9,3213.2,3.95488931]
[1736866326456,0.04500399,3214.7,3214.0,0.61261878]
[1736866326657,0.04511747,3214.8,3214.1,0.55]
[1736866326973,0.7922,3214.9,3214.1,0.55]
[1736866327173,0.7922,3214.9,3214.1,3.66121]
[1736866327344,0.7922,3214.9,3214.1,3.69231374]
[1736866327546,0.7922,3214.9,3214.1,0.55]
[1736866327879,0.7922,3214.9,3214.0,1.42431878]
[1736866327880,0.7922,3214.9,3214.0,0.61261878]
[1736866328264,0.04497033,3214.8,3214.1,0.58110691]
[1736866328575,0.04497033,3214.8,3214.1,3.66124]
[1736866328777,8.26e-06,3215.2,3214.1,3.66124]
[1736866328979,0.04529427,3215.1,3214.4,0.55]
[1736866329158,0.04529427,3215.1,3214.5,3.14200092]
[1736866329342,8.26e-06,3215.2,3214.5,3.96152567]
[1736866329548,8.26e-06,3215.2,3215.0,0.63778268]
[1736866329749,8.26e-06,3215.2,3215.1,3.92202]
[1736866329948,8.26e-06,3215.2,3215.1,6.92202]
[1736866330587,0.7922,3215.1,3215.0,0.63778268]
[1736866330766,0.83807639,3215.1,3214.6,2.57830185]
[1736866331310,1.61492733,3215.1,3213.6,3.39000185]
[1736866331449,1.61492733,3215.1,3213.6,0.8117]
[1736866331651,1.61492733,3215.1,3213.5,3.22134687]
[1736866331652,3.7922,3214.8,3213.5,3.22134687]
[1736866332066,0.04572615,3214.7,3213.2,0.8117]
[1736866332268,3.93042475,3214.5,3213.8,0.63566359]
[1736866332655,0.04552811,3214.4,3213.8,0.63566359]
[1736866333268,0.7922,3214.6,3213.8,0.63566359]
[1736866333582,1.17142,3214.6,3213.8,0.63566359]
[1736866333785,0.04499977,3214.5,3213.8,0.63566359]
[1736866335085,0.04499977,3214.5,3213.9,0.55]
[1736866336256,0.04499977,3214.5,3213.8,0.63566359]
[1736866336257,3.0,3214.4,3213.8,0.63566359]
[1736866336456,3.0,3214.4,3213.2,0.8117]
[1736866336662,0.04456119,3214.3,3213.6,0.61334629]
[1736866337696,3.0,3214.4,3213.6,0.61334629]
[1736866337985,0.04425166,3214.3,3213.6,0.61334629]
[1736866338185,0.04425166,3214.3,3213.3,0.55]
[1736866338554,0.04425166,3214.3,3213.5,0.61004337]
[1736866339405,0.04425166,3214.3,3213.6,0.55]
[1736866339701,0.04425166,3214.3,3213.8,0.55]
[1736866339868,0.7922,3214.6,3213.2,0.8117]
[1736866339869,0.7922,3214.6,3213.3,3.11206]
[1736866340073,0.7819,3215.1,3214.0,0.55]
[1736866340276,0.04320863,3214.5,3214.2,0.55]
[1736866340452,0.7819,3215.1,3214.3,0.03110249]
[1736866340651,0.7819,3215.1,3214.2,0.55]
[1736866340853,0.7819,3215.1,3214.2,3.66113]
[1736866341152,0.7819,3215.1,3214.5,0.55]
[1736866341357,0.7819,3215.1,3214.8,0.6367898]
[1736866341576,8.26e-06,3215.2,3214.9,0.55]
[1736866341797,8.26e-06,3215.2,3214.8,0.6367898]
[1736866341960,0.04265143,3215.1,3214.8,0.6367898]
[1736866342156,0.04265143,3215.1,3214.9,0.55]
[1736866342351,8.26e-06,3215.2,3214.9,0.55]
[1736866343065,8.26e-06,3215.2,3214.8,0.6367898]
[1736866343486,8.26e-06,3215.2,3214.9,0.55]
[1736866343786,8.26e-06,3215.2,3214.8,0.6367898]
[1736866343987,8.26e-06,3215.2,3214.1,3.11129]
[1736866344190,0.04134644,3215.1,3214.8,0.55]
[1736866344389,8.26e-06,3215.2,3214.9,0.03109698]
[1736866344703,8.26e-06,3215.2,3215.0,0.55]
[1736866345078,8.26e-06,3215.2,3215.1,3.6914149]
[1736866345278,8.26e-06,3215.2,3215.1,6.66032]
[1736866345484,0.7819,3216.9,3216.0,3.10945]
[1736866345679,0.7819,3216.9,3216.1,0.55]
[1736866346193,0.04180003,3216.8,3215.9,0.7821]
[1736866346365,0.04180003,3216.8,3215.5,4.03453399]
[1736866346572,0.04180003,3216.8,3215.6,0.55]
[1736866346781,0.7819,3216.9,3215.6,0.55]
[1736866346979,0.7819,3216.9,3215.8,0.55]
[1736866347198,0.04286764,3216.8,3215.7,0.55]
[1736866347359,0.04286764,3216.8,3215.7,0.58108713]
[1736866347689,0.7819,3216.9,3215.7,3.16773786]
[1736866347895,0.7819,3216.9,3215.7,3.45704084]
[1736866348091,0.7819,3216.9,3215.9,0.55]
[1736866348395,0.04292051,3216.8,3216.1,0.62614251]
[1736866350981,0.7819,3216.7,3215.7,2.58665073]
[1736866351194,3.93042475,3215.9,3215.7,2.58665073]
[1736866351396,0.7819,3215.7,3215.6,2.58665073]
[1736866351890,0.7819,3215.7,3215.1,0.32529837]
[1736866352085,3.0,3215.4,3214.5,0.62695221]
[1736866352341,3.7819,3215.4,3215.3,0.32529578]
[1736866352476,4.55313247,3215.4,3214.4,2.58665073]
[1736866352678,3.0,3214.7,3214.4,2.58665073]
[1736866352903,0.7819,3214.9,3214.4,2.58665073]
[1736866353297,0.7819,3214.9,3213.9,0.63542285]
[1736866354024,0.7819,3214.9,3214.0,0.55]
[1736866354195,0.7819,3214.9,3213.9,0.63542285]
[1736866355317,0.7819,3214.9,3214.0,0.55]
[1736866356295,0.7819,3214.9,3213.9,0.63542285]
[1736866356809,3.0,3214.7,3213.3,0.7821]
[1736866357184,3.03114125,3214.7,3213.3,0.7821]
[1736866357520,0.7819,3214.6,3213.5,0.61591492]
[1736866357707,0.7819,3214.6,3213.6,0.55]
[1736866357917,3.0,3214.4,3213.5,0.61591492]
[1736866358123,3.0,3214.1,3213.5,0.61591492]
[1736866358434,3.0,3214.1,3212.9,2.58665073]
[1736866358606,3.0,3214.1,3213.0,0.55]
[1736866358947,3.03114125,3214.1,3213.2,0.63860422]
[1736866359124,3.0,3214.1,3213.2,0.63860422]
[1736866359291,0.04000747,3214.0,3213.2,0.63860422]
[1736866360296,0.7819,3214.3,3213.2,0.63860422]
[1736866360497,0.03994144,3213.9,3213.2,0.63860422]
[1736866360710,0.7819,3214.3,3213.2,0.63860422]
[1736866360919,0.03987541,3213.8,3213.2,0.63860422]
[1736866361139,0.7819,3214.3,3213.2,0.63860422]
[1736866361348,0.03980936,3213.7,3213.2,0.63860422]
[1736866361635,0.03980936,3213.7,3212.2,3.11312]
[1736866361636,3.0,3213.2,3212.2,2.58665073]
[1736866361931,3.0,3212.8,3212.2,2.58665073]
[1736866362434,0.03781141,3212.7,3212.1,0.60912059]
[1736866362646,0.03781141,3212.7,3211.8,2.58665073]
[1736866362948,3.0,3212.5,3211.8,2.58665073]
[1736866363247,0.03797526,3212.4,3211.5,0.62923546]
[1736866363458,0.8167,3212.3,3211.5,0.62923546]
[1736866363594,3.0,3212.2,3211.5,0.62923546]
[1736866363799,0.03667182,3212.1,3211.5,0.62923546]
[1736866364030,0.8167,3212.3,3211.5,0.62923546]
[1736866364210,0.03673796,3212.2,3211.5,0.62923546]
[1736866364828,3.03673796,3212.2,3210.7,1.247558]
[1736866364996,3.03673796,3212.2,3210.7,0.03113237]
[1736866365203,3.93042475,3211.2,3210.4,1.247641]
[1736866365421,0.7899,3211.0,3210.3,2.58665073]
[1736866365635,0.03494881,3210.9,3210.3,2.58665073]
[1736866366655,0.7899,3210.8,3210.3,2.58665073]
[1736866367017,0.03557991,3210.7,3209.9,0.63422296]
[1736866367932,0.03557991,3210.7,3209.2,0.8255]
[1736866368238,0.03557991,3210.7,3208.8,0.8255]
[1736866368239,0.7899,3210.3,3208.8,0.8255]
[1736866368437,0.7899,3210.1,3208.7,2.58665073]
[1736866368758,0.7899,3209.9,3208.8,2.58665073]
[1736866368920,0.67543103,3210.2,3208.8,2.58665073]
[1736866368921,3.7899,3209.1,3208.8,2.58665073]
[1736866369122,0.262,3209.0,3208.4,2.58665073]
[1736866369460,3.7899,3208.7,3208.4,1.75811416]
[1736866369618,0.81454763,3208.6,3208.2,3.22134687]
[1736866369805,0.03112222,3208.5,3208.2,3.22134687]
[1736866370359,0.03112222,3208.5,3207.5,0.62560057]
[1736866370556,0.7899,3208.7,3207.5,0.62560057]
[1736866370758,0.03093878,3208.4,3207.5,0.62560057]
[1736866370929,0.02996495,3208.6,3207.5,0.62560057]
[1736866371233,0.03100504,3208.5,3207.5,0.62560057]
[1736866371644,0.03100504,3208.5,3207.6,0.55]
[1736866371859,0.7899,3208.7,3207.6,0.55]
[1736866372060,0.03044491,3208.4,3207.6,0.55]
[1736866372204,0.03057742,3208.6,3207.7,3.14865695]
[1736866372406,0.7899,3208.7,3207.9,3.1173]
[1736866372662,0.7899,3208.7,3208.0,0.55]
[1736866372857,0.7899,3209.2,3208.0,0.55]
[1736866373223,0.03114125,3210.1,3208.2,1.17890765]
[1736866373224,0.7899,3210.1,3208.2,1.17890765]
[1736866373455,0.7899,3210.1,3208.6,0.55]
[1736866373646,0.7899,3210.1,3208.7,0.03115285]
[1736866373807,0.7899,3210.1,3208.8,0.55]
[1736866374139,0.7899,3210.1,3209.2,0.62216869]
[1736866374328,0.7899,3210.1,3209.3,0.55]
[1736866374527,0.03170576,3210.0,3209.3,0.55]
[1736866374707,0.7899,3210.1,3209.3,0.55]
[1736866375124,0.03170576,3210.0,3209.2,0.62216869]
[1736866375329,0.7899,3210.1,3208.7,3.11652]
[1736866375855,0.7899,3210.1,3208.8,0.55]
[1736866376025,0.7899,3210.1,3208.8,0.58115434]
[1736866376232,0.03170576,3210.0,3209.0,0.55]
[1736866376539,0.03170576,3210.0,3209.2,0.55]
[1736866377153,0.03170576,3210.0,3208.5,0.8255]
[1736866377554,0.03170576,3210.0,3208.6,0.55]
[1736866377952,0.03170576,3210.0,3209.0,0.61935217]
[1736866378158,0.03170576,3210.0,3209.1,0.55]
[1736866379065,0.03170576,3210.0,3209.0,0.61935217]
[1736866379066,5.14547632,3209.9,3209.0,0.61935217]
[1736866379366,0.7899,3209.3,3209.0,0.61935217]
[1736866379566,0.7899,3209.3,3207.7,0.8255]
[1736866379567,0.03114125,3209.2,3207.7,0.8255]
[1736866379742,0.03100145,3209.2,3207.7,0.8255]
[1736866379950,0.7899,3209.3,3207.7,0.8255]
[1736866380554,0.7899,3209.3,3208.1,0.63158814]
[1736866380855,0.41310558,3209.2,3208.1,0.63158814]
[1736866381044,1.0547,3209.1,3208.1,0.63158814]
[1736866381239,0.7917,3209.0,3208.1,0.63158814]
[1736866381443,0.03041404,3208.9,3208.1,0.63158814]
[1736866381639,0.7917,3208.8,3207.2,0.7587]
[1736866381862,0.7917,3208.6,3207.2,0.7587]
[1736866382066,0.7917,3208.6,3206.8,3.87707]
[1736866382255,0.03000105,3208.5,3206.8,3.87707]
[1736866382468,0.7917,3208.6,3206.8,3.87707]
[1736866382672,0.7917,3208.6,3207.6,0.61522802]
[1736866383060,0.83436551,3208.5,3207.6,0.61522802]
[1736866383291,0.7734,3208.3,3206.4,3.91368]
[1736866383485,0.7734,3208.1,3207.3,0.61997352]
[1736866383793,0.02946538,3208.0,3207.3,0.61997352]
[1736866383991,0.02946538,3208.0,3207.4,0.55]
[1736866384294,0.7734,3208.1,3207.4,0.55]
[1736866385790,0.7734,3208.1,3207.3,0.61997352]
[1736866385791,0.02917464,3208.0,3207.3,0.61997352]
[1736866385990,1.0354,3207.9,3207.3,0.61997352]
[1736866386218,0.02910393,3207.8,3207.3,0.61997352]
[1736866386581,0.06024518,3207.8,3207.3,0.61997352]
[1736866386896,0.7734,3207.7,3205.9,3.91418]
[1736866387089,0.7734,3207.6,3205.9,3.91418]
[1736866387261,0.80239259,3207.6,3205.9,3.91418]
[1736866387884,0.80239259,3207.6,3206.6,0.61485338]
[1736866388895,0.83353384,3207.6,3206.6,0.61485338]
[1736866389263,0.80239259,3207.6,3206.6,0.61485338]
[1736866389465,0.7734,3207.4,3206.6,0.61485338]
[1736866389857,0.7734,3207.2,3205.9,0.03118073]
[1736866390082,0.03114125,3207.1,3205.6,0.1659143]
[1736866390287,0.7734,3207.0,3205.8,0.32535104]
[1736866390487,0.7734,3207.0,3205.6,0.1659143]
[1736866390711,0.7734,3206.8,3206.2,0.62447294]
[1736866390911,0.7734,3206.8,3205.8,0.32531824]
[1736866391112,0.7734,3206.8,3205.6,0.1659143]
[1736866391113,0.02901263,3206.7,3205.6,0.1659143]
[1736866391294,0.02901263,3206.7,3205.8,0.32537283]
[1736866391507,0.02901263,3206.7,3206.2,0.55]
[1736866391886,0.7734,3206.8,3206.1,0.61991292]
[1736866392488,0.02901263,3206.7,3205.6,0.1659143]
[1736866392796,0.7734,3206.0,3205.6,0.1659143]
[1736866392996,0.40582185,3205.9,3205.6,0.1659143]
[1736866393203,3.7734,3205.7,3205.6,0.1659143]
[1736866393522,3.80454125,3205.7,3205.6,0.1659143]
[1736866393829,0.80158108,3205.7,3205.6,0.1659143]
[1736866394722,3.7734,3205.7,3205.6,0.1659143]
[1736866394924,4.65828701,3205.7,3205.6,0.1659143]
[1736866395127,0.8169,3205.2,3203.8,1.08393372]
[1736866395788,0.8169,3205.2,3204.1,0.61822352]
[1736866395985,4.35557632,3205.0,3203.8,0.28893372]
[1736866396185,0.8169,3204.8,3203.8,0.28893372]
[1736866396390,1.63414763,3204.8,3203.4,3.92303]
[1736866396988,0.8169,3204.8,3203.9,0.61791097]
[1736866397193,0.8169,3204.8,3204.0,0.56]
[1736866398793,0.8169,3204.8,3204.0,0.01]
[1736866399908,0.8169,3204.8,3204.0,0.56]
[1736866400108,0.8169,3204.8,3204.1,0.58120374]
[1736866400313,0.8169,3204.8,3204.1,0.55]
[1736866400625,0.8169,3204.8,3204.0,0.01]
[1736866400626,0.8169,3204.8,3204.0,0.56]
[1736866401133,0.8169,3204.8,3204.0,0.01]
[1736866401294,0.8169,3204.8,3204.1,0.55]
[1736866401501,0.8169,3204.8,3204.3,0.55]
[1736866401796,0.8169,3205.6,3204.6,0.55]
[1736866402621,0.8169,3206.6,3204.7,0.03119667]
[1736866402819,0.8169,3206.6,3205.0,0.55]
[1736866403198,0.8169,3206.6,3205.2,0.55]
[1736866403631,0.8169,3206.6,3205.1,0.55]
[1736866403829,0.8169,3206.6,3205.8,0.55]
[1736866404721,0.8169,3206.6,3205.8,3.66925]
[1736866404916,0.8169,3206.6,3205.8,0.55]
[1736866405132,0.8169,3206.6,3205.7,0.638671]
[1736866405323,0.8169,3206.4,3205.0,3.35122034]
[1736866405643,0.8169,3206.1,3205.0,2.55482034]
[1736866406148,0.8169,3206.0,3204.8,3.19352543]
[1736866406532,0.8169,3206.0,3204.4,3.55]
[1736866406848,0.8169,3206.0,3205.0,0.62291524]
[1736866407044,0.8169,3206.0,3205.1,0.55]
[1736866407611,0.03114125,3205.9,3204.4,2.55482034]
[1736866407813,3.0,3205.7,3204.8,0.62785455]
[1736866408110,0.84804125,3205.6,3204.4,2.55482034]
[1736866408343,0.8169,3204.8,3204.4,2.55482034]
[1736866408548,0.8169,3204.6,3204.2,2.55482034]
[1736866408756,0.03114125,3204.5,3204.2,2.55482034]
[1736866408944,0.8169,3204.6,3204.2,2.55482034]
[1736866409124,0.8169,3204.6,3204.0,0.01]
[1736866414839,0.8169,3204.6,3204.2,0.61886226]
[1736866415442,0.8169,3204.6,3204.0,2.56482034]
[1736866416157,0.8169,3204.6,3204.1,2.55482034]
[1736866416533,0.8169,3204.6,3204.0,0.01]
[1736866417828,0.03114125,3204.5,3204.0,0.01]
[1736866418034,0.8169,3204.4,3204.0,0.01]
[1736866418694,0.03114125,3204.3,3204.0,0.01]
[1736866418896,0.8169,3204.2,3204.0,0.01]
[1736866421386,0.8169,3204.5,3204.0,0.01]
[1736866421785,0.03114125,3204.4,3204.0,0.01]
[1736866421976,0.8169,3204.2,3204.0,0.01]
[1736866422301,8.20361757,3204.1,3204.0,0.01]
[1736866422582,4.63726176,3204.1,3204.0,0.01]
[1736866422784,3.8169,3204.1,3204.0,0.01]
[1736866423002,8.17247632,3204.1,3204.0,0.01]
[1736866426082,7.35557632,3203.5,3203.4,0.005]
[1736866426253,7.62157632,3203.5,3203.4,0.005]
[1736866427190,0.6109,3203.3,3203.1,0.005]
[1736866427357,0.64204125,3203.2,3203.1,0.005]
[1736866427564,1.00624538,3203.2,3203.1,0.005]
[1736866427987,1.00624538,3203.2,3201.9,0.005]
[1736866427988,0.39534538,3203.2,3201.9,0.005]
[1736866428188,3.7938,3202.6,3201.9,0.005]
[1736866428398,4.35557632,3202.3,3201.9,0.005]
[1736866428707,0.266,3202.2,3201.9,0.005]
[1736866428874,0.7938,3202.6,3201.9,0.005]
[1736866428875,1.0598,3203.0,3201.9,0.005]
[1736866429073,4.35557632,3203.7,3202.0,3.12304]
[1736866429286,0.7938,3203.6,3202.3,3.12268]
[1736866430279,0.7938,3203.6,3202.2,5.74834577]
[1736866430595,0.7938,3203.6,3202.2,2.55482034]
[1736866430905,0.7938,3203.6,3202.3,2.55482034]
[1736866431579,0.266,3203.5,3202.3,2.55482034]
[1736866431974,1.10753763,3203.5,3202.4,2.55482034]
[1736866432376,1.13867888,3203.5,3202.4,2.55482034]
[1736866432668,1.13867888,3203.5,3202.0,3.19352543]
[1736866432669,0.7938,3202.7,3202.2,2.55482034]
[1736866433279,3.0,3202.4,3202.2,2.55482034]
[1736866433474,1.0598,3202.3,3201.9,0.005]
[1736866433707,0.40598,3202.2,3201.9,0.005]
[1736866435276,4.35557632,3202.1,3201.9,0.005]
[1736866435476,3.0,3202.0,3201.9,0.005]
[1736866436008,0.40598,3202.2,3201.9,0.005]
[1736866437174,0.03114125,3202.1,3201.9,0.005]
[1736866437474,0.40598,3202.2,3201.9,0.005]
[1736866438113,0.43712125,3202.2,3201.9,0.005]
[1736866438274,3.0,3202.0,3201.9,0.005]
[1736866438607,3.77615563,3202.0,3201.9,0.005]
[1736866439113,0.77615563,3202.0,3201.9,0.005]
[1736866439319,0.40598,3202.2,3201.9,0.005]
[1736866440210,0.266,3202.1,3201.9,0.005]
[1736866440375,0.03114125,3202.0,3201.9,0.005]
[1736866440584,4.62157632,3202.1,3201.9,0.005]
[1736866440836,3.79464125,3202.0,3201.9,0.005]
[1736866440978,4.63626301,3202.0,3201.9,0.005]
[1736866441178,4.63626301,3202.0,3200.5,2.55482034]
[1736866441179,3.0,3201.3,3200.5,2.55482034]
[1736866441379,8.11907632,3200.6,3200.5,2.55482034]
[1736866441627,3.7635,3200.5,3200.1,2.03587245]
[1736866441811,6.96971545,3200.2,3200.0,3.19352543]
[1736866442113,6.96971545,3200.2,3199.7,3.83223052]
[1736866442114,0.7635,3200.0,3199.7,3.83223052]
[1736866442287,0.7635,3200.0,3199.2,0.1659143]
[1736866442288,3.0,3199.7,3199.2,0.1659143]
[1736866442492,3.96971545,3199.3,3199.2,0.1659143]
[1736866442696,4.73321545,3199.3,3199.2,0.1659143]
[1736866443005,0.266,3199.4,3199.2,0.1659143]
[1736866443227,4.7643567,3199.3,3198.6,2.48684972]
[1736866443407,6.96971545,3198.7,3198.6,2.48684972]